fUST/lending_fUST_20251022
["ID","MTS","AMOUNT","RATE_DAILY","PERIOD"]
[391997363,1761072644083,-870.44369419,0.00026521,2]
[391997364,1761072644093,-463.11226929,0.00026521,2]
[391997365,1761072644103,-1000.0,0.00026521,2]
[391997366,1761072644113,-530.2359569,0.00026521,2]
[391997367,1761072644123,-1000.0,0.00026521,2]
[391997368,1761072644133,-533.88981491,0.00026522,2]
[391997369,1761072644143,-206.33422799,0.00026522,2]
[391997370,1761072644152,-500.0,0.00026533,2]
[391997371,1761072644163,-605.72957738,0.0002658,3]
[391997372,1761072644172,-309.2025694,0.0002658,3]
[391997373,1761072644183,-47682.4787806,0.00026639,2]
[391997374,1761072644193,-198.479101,0.00026649,2]
[391997375,1761072644203,-151.0,0.00026649,7]
[391997376,1761072644213,-151.0,0.00026649,7]
[391997377,1761072644222,-151.0,0.00026649,7]
[391997378,1761072644231,-151.0,0.00026649,7]
[391997379,1761072644241,-151.0,0.00026649,7]
[391997380,1761072644250,-151.0,0.00026649,7]
[391997381,1761072644259,-151.0,0.00026649,7]
[391997382,1761072644268,-151.0,0.00026649,7]
[391997383,1761072644278,-151.0,0.00026649,7]
[391997384,1761072644292,-151.0,0.00026649,2]
[391997385,1761072644301,-151.0,0.00026649,7]
[391997386,1761072644310,-159.840175,0.00026649,7]
[391997387,1761072644319,-159.840175,0.00026649,7]
[391997388,1761072644329,-159.840175,0.00026649,7]
[391997389,1761072644338,-159.840175,0.00026649,7]
[391997390,1761072644348,-498.808019,0.00026649,7]
[391997391,1761072644358,-498.808019,0.00026649,7]
[391997392,1761072644369,-498.808019,0.00026649,7]
[391997393,1761072644379,-151.0,0.00026649,7]
[391997394,1761072644389,-498.808019,0.00026649,7]
[391997395,1761072644398,-151.0,0.00026649,7]
[391997396,1761072644409,-301.72816,0.00026649,7]
[391997397,1761072644419,-301.72816,0.00026649,7]
[391997398,1761072644428,-301.72816,0.00026649,7]
[391997399,1761072644439,-153.544262,0.00026649,7]
[391997400,1761072644448,-301.72816,0.00026649,7]
[391997401,1761072644457,-153.544262,0.00026649,7]
[391997402,1761072644467,-153.544262,0.00026649,7]
[391997403,1761072644477,-153.544262,0.00026649,7]
[391997404,1761072644487,-151.0,0.00026649,7]
[391997405,1761072644497,-599.32518696,0.00026653,2]
[391997406,1761072644506,-151.0,0.00026659,7]
[391997407,1761072644517,-170.155852,0.00026659,7]
[391997408,1761072644527,-151.0,0.00026659,7]
[391997409,1761072644538,-151.0,0.00026659,7]
[391997410,1761072644547,-151.0,0.00026659,7]
[391997411,1761072644556,-151.0,0.00026659,7]
[391997412,1761072644566,-151.0,0.00026659,7]
[391997413,1761072644576,-211.6854,0.00026659,7]
[391997414,1761072644586,-151.0,0.00026659,7]
[391997415,1761072644597,-151.0,0.00026659,7]
[391997416,1761072644606,-151.0,0.00026659,7]
[391997417,1761072644616,-151.0,0.00026659,7]
[391997418,1761072644625,-151.0,0.00026659,7]
[391997419,1761072644636,-151.0,0.00026659,7]
[391997420,1761072644645,-151.0,0.00026659,7]
[391997421,1761072644654,-269.313052,0.00026659,7]
[391997422,1761072644663,-151.0,0.00026659,7]
[391997423,1761072644673,-284.922128,0.00026659,7]
[391997424,1761072644682,-284.922128,0.00026659,7]
[391997425,1761072644691,-284.922128,0.00026659,7]
[391997426,1761072644701,-284.922128,0.00026659,7]
[391997427,1761072644711,-151.0,0.00026659,7]
[391997428,1761072644720,-166.0,0.0002666,3]
[391997429,1761072644731,-165.0,0.0002666,3]
[391997430,1761072644740,-165.0,0.0002666,3]
[391997431,1761072644750,-166.0,0.0002666,3]
[391997432,1761072644759,-163.0,0.0002666,3]
[391997433,1761072644769,-153.65056194,0.0002666,3]
[391997434,1761072644779,-165.0,0.0002666,3]
[391997435,1761072644789,-167.0,0.0002666,3]
[391997436,1761072644798,-330.0,0.0002666,3]
[391997437,1761072644807,-151.24162072,0.0002666,3]
[391997438,1761072644816,-165.0,0.0002666,3]
[391997439,1761072644826,-167.0,0.0002666,3]
[391997440,1761072644835,-330.0,0.0002666,3]
[391997441,1761072644844,-167.1362042,0.0002666,3]
[391997442,1761072644853,-330.0,0.0002666,3]
[391997443,1761072644863,-167.0,0.0002666,3]
[391997444,1761072644873,-166.0,0.0002666,3]
[391997445,1761072644882,-330.0,0.0002666,3]
[391997446,1761072644893,-299.11390515,0.0002666,3]
[391997447,1761072644903,-166.0,0.0002666,3]
[391997448,1761072644916,-330.0,0.0002666,3]
[391997449,1761072644926,-330.0,0.0002666,3]
[391997450,1761072644936,-166.0,0.0002666,3]
[391997451,1761072644945,-330.0,0.0002666,3]
[391997452,1761072644955,-330.0,0.0002666,3]
[391997453,1761072644965,-330.0,0.0002666,3]
[391997454,1761072644974,-330.0,0.0002666,3]
[391997455,1761072644984,-330.0,0.0002666,3]
[391997456,1761072644994,-267.89579574,0.0002666,3]
[391997457,1761072645003,-6951.19114734,0.00026668,2]
[391997458,1761072645012,-472.36268032,0.00026673,2]
[391997459,1761072645022,-500.0,0.00026673,2]
[391997460,1761072645031,-500.0,0.00026673,2]
[391997461,1761072645044,-500.0,0.00026673,2]
[391997462,1761072645054,-500.0,0.00026673,2]
[391997463,1761072645064,-505.85006658,0.00026673,2]
[391997464,1761072645074,-500.0,0.00026673,2]
[391997465,1761072645083,-500.0,0.00026673,2]
[391997466,1761072645093,-500.0,0.00026673,2]
[391997467,1761072645102,-500.0,0.00026673,2]
[391997468,1761072645112,-500.0,0.00026673,2]
[391997469,1761072645121,-500.0,0.00026673,2]
[391997470,1761072645130,-500.0,0.00026673,2]
[391997471,1761072645140,-500.0,0.00026673,2]
[391997472,1761072645149,-500.0,0.00026673,2]
[391997473,1761072645159,-500.0,0.00026673,2]
[391997474,1761072645169,-640.100529,0.00026676,2]
[391997475,1761072645178,-500.0,0.00026746,2]
[391997476,1761072645188,-47682.4787806,0.00026758,2]
[391997477,1761072645198,-187.924885,0.00026765,2]
[391997478,1761072645207,-1500.0,0.00026768,2]
[391997479,1761072645216,-224.354295,0.00026852,7]
[391997480,1761072645226,-224.354295,0.00026852,7]
[391997481,1761072645235,-224.354295,0.00026852,7]
[391997482,1761072645246,-224.354295,0.00026852,7]
[391997483,1761072645255,-151.0,0.00026852,7]
[391997484,1761072645264,-151.0,0.00026852,7]
[391997485,1761072645275,-151.0,0.00026852,7]
[391997486,1761072645290,-151.0,0.00026852,7]
[391997487,1761072645300,-151.0,0.00026852,7]
[391997488,1761072645311,-151.0,0.00026852,7]
[391997489,1761072645322,-151.0,0.00026852,7]
[391997490,1761072645331,-151.0,0.00026852,7]
[391997491,1761072645342,-152.565515,0.00026852,7]
[391997492,1761072645353,-47682.4787806,0.00026855,2]
[391997493,1761072645363,-230.4589489,0.00026864,2]
[391997494,1761072645372,-524.81180904,0.00026864,2]
[391997495,1761072645383,-1000.0,0.00026865,2]
[391997496,1761072645393,-1000.0,0.00026865,2]
[391997497,1761072645404,-1000.0,0.00026865,2]
[391997498,1761072645415,-1000.0,0.00026865,2]
[391997499,1761072645425,-1000.0,0.00026865,2]
[391997500,1761072645435,-1000.0,0.00026865,2]
[391997501,1761072645446,-1000.0,0.00026865,2]
[391997502,1761072645456,-1000.0,0.00026865,2]
[391997503,1761072645465,-1000.0,0.00026865,2]
[391997504,1761072645475,-1000.0,0.00026865,2]
[391997505,1761072645484,-1000.0,0.00026865,2]
[391997506,1761072645494,-1000.0,0.00026865,2]
[391997507,1761072645503,-1000.0,0.00026865,2]
[391997508,1761072645512,-1000.0,0.00026865,2]
[391997509,1761072645522,-1000.0,0.00026865,2]
[391997510,1761072645532,-1000.0,0.00026865,2]
[391997511,1761072645541,-1000.0,0.00026865,2]
[391997512,1761072645551,-1000.0,0.00026865,2]
[391997513,1761072645560,-1000.0,0.00026865,2]
[391997514,1761072645569,-681.7136,0.00026865,2]
[391997515,1761072645578,-151.0,0.00026865,7]
[391997516,1761072645588,-151.0,0.00026865,2]
[391997517,1761072645598,-151.0,0.00026865,7]
[391997518,1761072645617,-159.840175,0.00026865,7]
[391997519,1761072645626,-159.840175,0.00026865,7]
[391997520,1761072645636,-159.840175,0.00026865,7]
[391997521,1761072645645,-159.840175,0.00026865,7]
[391997522,1761072645655,-498.808019,0.00026865,7]
[391997523,1761072645664,-498.808019,0.00026865,7]
[391997524,1761072645674,-151.0,0.00026865,7]
[391997525,1761072645684,-498.808019,0.00026865,7]
[391997526,1761072645694,-498.808019,0.00026865,7]
[391997527,1761072645704,-151.0,0.00026865,7]
[391997528,1761072645714,-301.72816,0.00026865,7]
[391997529,1761072645724,-301.72816,0.00026865,7]
[391997530,1761072645733,-301.72816,0.00026865,7]
[391997531,1761072645743,-153.544262,0.00026865,7]
[391997532,1761072645752,-301.72816,0.00026865,7]
[391997533,1761072645761,-153.544262,0.00026865,7]
[391997534,1761072645771,-153.544262,0.00026865,7]
[391997535,1761072645780,-153.544262,0.00026865,7]
[391997536,1761072645790,-151.0,0.00026865,7]
[391997537,1761072645799,-217.083671,0.00026865,7]
[391997538,1761072645809,-151.0,0.00026865,7]
[391997539,1761072645818,-151.0,0.00026865,7]
[391997540,1761072645828,-217.083671,0.00026865,7]
[391997541,1761072645838,-151.0,0.00026865,7]
[391997542,1761072645849,-151.0,0.00026865,7]
[391997543,1761072645858,-217.083671,0.00026865,7]
[391997544,1761072645867,-5500.0,0.00026865,7]
[391997545,1761072645877,-151.0,0.00026865,7]
[391997546,1761072645886,-151.0,0.00026865,7]
[391997547,1761072645895,-217.083671,0.00026865,7]
[391997548,1761072645905,-5500.0,0.00026865,7]
[391997549,1761072645914,-151.0,0.00026865,7]
[391997550,1761072645926,-203.658787,0.00026865,7]
[391997551,1761072645935,-5500.0,0.00026865,7]
[391997552,1761072646100,-151.0,0.00026865,7]
[391997553,1761072646110,-203.658787,0.00026865,7]
[391997554,1761072646120,-5500.0,0.00026865,7]
[391997555,1761072646130,-203.658787,0.00026865,7]
[391997556,1761072646141,-151.0,0.00026865,7]
[391997557,1761072646151,-203.658787,0.00026865,7]
[391997558,1761072646160,-151.0,0.00026865,7]
[391997559,1761072646170,-151.0,0.00026865,7]
[391997560,1761072646179,-151.440173,0.00026865,7]
[391997561,1761072646190,-151.0,0.00026865,7]
[391997562,1761072646200,-151.0,0.00026865,7]
[391997563,1761072646209,-151.0,0.00026865,7]
[391997564,1761072646218,-219.282243,0.00026873,7]
[391997565,1761072646229,-219.282243,0.00026873,7]
[391997566,1761072646240,-219.282243,0.00026873,7]
[391997567,1761072646250,-151.0,0.00026873,7]
[391997568,1761072646260,-151.0,0.00026873,2]
[391997569,1761072646270,-151.0,0.00026873,7]
[391997570,1761072646283,-219.282243,0.00026873,7]
[391997571,1761072646293,-151.0,0.00026873,7]
[391997573,1761072646303,-151.0,0.00026873,7]
[391997574,1761072646313,-151.0,0.00026873,7]
[391997575,1761072646323,-151.0,0.00026873,7]
[391997576,1761072646333,-151.0,0.00026873,7]
[391997577,1761072646342,-241.437225,0.00026873,7]
[391997579,1761072646351,-151.0,0.00026873,7]
[391997580,1761072646364,-151.0,0.00026873,7]
[391997581,1761072646374,-151.0,0.00026873,7]
[391997582,1761072646383,-173.969455,0.00026873,7]
[391997583,1761072646393,-273.519545,0.00026873,7]
[391997584,1761072646403,-173.969455,0.00026873,7]
[391997585,1761072646413,-1443.92885767,0.0002691,2]
[391997586,1761072646422,-2088.36,0.00026933,3]
[391997587,1761072646431,-1044.18,0.00026933,3]
[391997588,1761072646441,-1044.18,0.00026933,3]
[391997589,1761072646450,-364.0,0.00026971,2]
[391997590,1761072646459,-150.0,0.00026973,2]
[391997591,1761072646469,-150.0,0.00026973,2]
[391997592,1761072646478,-160.0,0.00026973,2]
[391997593,1761072646487,-151.0,0.0002699,7]
[391997594,1761072646498,-151.0,0.0002699,7]
[391997595,1761072646509,-151.0,0.0002699,7]
[391997596,1761072646519,-151.0,0.0002699,7]
[391997597,1761072646529,-151.0,0.0002699,7]
[391997598,1761072646539,-151.0,0.0002699,7]
[391997599,1761072646550,-151.0,0.0002699,7]
[391997600,1761072646559,-151.0,0.0002699,7]
[391997601,1761072646569,-95364.9575611,0.0002699,2]
[391997602,1761072646579,-244526.25121296,0.00027,2]
[391997603,1761072646594,-30011.16210577,0.00027,2]
[391997604,1761072646606,-50001.42765187,0.00027,2]
[391997616,1761072706635,150.0,0.00020136,2]
[391997617,1761072707085,250.84,0.00021966,2]
[391997618,1761072707494,376.26,0.00023797,2]
[391997619,1761072710727,150.0,0.00012517,30]
[391997620,1761072711132,150.0,0.00013655,30]
[391997621,1761072711520,161.25,0.00014793,30]
[391997622,1761072712122,215.0,0.00015931,30]
[391997623,1761072712521,268.76,0.00017069,30]
[391997624,1761072712928,322.51,0.00018207,30]
[391997625,1761072713338,376.26,0.00019345,30]
[391997626,1761072713746,430.01,0.00020483,30]
[391997627,1761072714155,483.76,0.00021621,30]
[391997628,1761072714551,374.16760486,0.00022759,30]
[391997629,1761072749253,-1734.76073718,0.00024703,2]
[391997630,1761072749282,-1530.48852564,0.00024953,2]
[391997631,1761072749496,-3469.51147436,0.00024953,2]
[391997632,1761072749526,-501.68,0.00025627,2]
[391997633,1761072749556,-500.0,0.00025973,2]
[391997634,1761072749584,-57.62705128,0.00026521,2]
[391997635,1761072749795,-553.06681822,0.00026521,2]
[391997636,1761072749835,-389.3061305,0.00026521,2]
[391997637,1761072749864,-300.0,0.00026574,2]
[391997638,1761072749892,-500.0,0.00026673,2]
[391997639,1761072750073,-173.969455,0.00026873,7]
[391997640,1761072750105,-173.969455,0.00026873,7]
[391997641,1761072750134,-151.0,0.00026873,7]
[391997642,1761072750163,-151.0,0.00026873,7]
[391997643,1761072750191,-151.0,0.00026873,7]
[391997644,1761072750219,-151.0,0.00026873,7]
[391997645,1761072750248,-1402.93855654,0.000269,2]
[391997646,1761072750276,-500.0,0.00026973,2]
[391997647,1761072750305,-500.0,0.00026973,2]
[391997648,1761072750338,-95.58280592,0.0002699,10]
[391997649,1761072750382,-720.47719408,0.0002699,10]
[391997650,1761072750412,-3262.87863174,0.00026994,2]
[391997651,1761072750490,-2033.29834836,0.00026994,2]
[391997652,1761072750706,-720.47719408,0.00027,2]
[391997653,1761072750741,-2033.29834836,0.00027,2]
[391997654,1761072750754,-5933.41330328,0.00027,2]
[391997655,1761072750783,-10000.01,0.00027,2]
[391997656,1761072750802,-10000.01,0.00027,2]
[391997657,1761072750816,-10000.01,0.00027,2]
[391997658,1761072752199,-10000.01,0.00027,2]
[391997659,1761072752338,-933.09382325,0.00027,2]
[391997660,1761072752386,-8133.8223535,0.00027,7]
[391997661,1761072782492,150.0,0.00020137,2]
[391997662,1761072782897,150.0,0.00021967,2]
[391997663,1761072783290,215.49,0.00023798,2]
[391997664,1761072787167,150.0,0.00013087,30]
[391997665,1761072787556,150.0,0.00014277,30]
[391997666,1761072787947,150.0,0.00015467,30]
[391997667,1761072788368,150.0,0.00016657,30]
[391997668,1761072788793,153.92,0.00017846,30]
[391997669,1761072789439,184.71,0.00019036,30]
[391997670,1761072789882,215.49,0.00020226,30]
[391997671,1761072790312,246.28,0.00021416,30]
[391997672,1761072791300,208.26,0.00022606,30]
[391997673,1761072859017,150.0,0.00020015,2]
[391997674,1761072859406,150.0,0.00021835,2]
[391997675,1761072859796,150.0,0.00023654,2]
[391997676,1761072863793,150.0,0.00013077,30]
[391997677,1761072864229,150.0,0.00014266,30]
[391997678,1761072864744,150.0,0.00015455,30]
[391997679,1761072865175,150.0,0.00016643,30]
[391997680,1761072865612,150.0,0.00017832,30]
[391997681,1761072933395,150.0,0.00020121,2]
[391997682,1761072933805,150.0,0.00021951,2]
[391997683,1761072934196,150.0,0.0002378,2]
[391997684,1761072937522,150.0,0.00013112,30]
[391997685,1761072937930,150.0,0.00014304,30]
[391997686,1761072947330,5000.0,0.00024072,2]
[391997688,1761072955603,4250.01,0.00024072,2]
[391997689,1761072955631,749.99,0.00024072,2]
[391997690,1761072970735,5000.0,0.00024072,2]
[391997691,1761072979131,3997.40616724,0.00024072,2]
[391997692,1761072983163,167.60511932,0.00024062,2]
[391997693,1761072994327,85.00871344,0.00024072,2]
[391997694,1761072994352,4914.99128656,0.00024072,2]
[391997695,1761073005187,150.0,0.00020333,2]
[391997696,1761073005636,150.0,0.00022181,2]
[391997697,1761073006147,150.0,0.0002403,2]
[391997698,1761073016671,4635.01871344,0.00024072,2]
[391997699,1761073016694,364.98128656,0.00024072,2]
[391997700,1761073039457,5000.0,0.00024072,2]
[391997701,1761073062359,4635.02871344,0.00024072,2]
[391997702,1761073062382,364.97128656,0.00024072,2]
[391997703,1761073077211,150.0,0.00020238,2]
[391997704,1761073077637,150.0,0.00022078,2]
[391997705,1761073078228,150.0,0.00023918,2]
[391997706,1761073085330,5000.0,0.00024072,2]
[391997707,1761073107900,4185.03871344,0.00024072,2]
[391997708,1761073107925,814.96128656,0.00024072,2]
[391997709,1761073130395,5000.0,0.00024072,2]
[391997710,1761073146995,150.0,0.00020085,2]
[391997711,1761073147393,150.0,0.00021911,2]
[391997712,1761073147795,150.0,0.00023737,2]
[391997713,1761073152732,3735.04871344,0.00024072,2]
[391997714,1761073152756,1264.95128656,0.00024072,2]
[391997715,1761073171838,276.58616224,0.00024061,2]
[391997716,1761073175233,5000.0,0.00024072,2]
[391997717,1761073213207,150.0,0.00020073,2]
[391997720,1761073249596,580.923367,0.00013699,2]
[391997721,1761073249836,580.923367,0.00020187,2]
[391997722,1761073256404,-911.73841856,0.00024116,2]
[391997723,1761073256433,-1200.0,0.00024161,2]
[391997724,1761073256463,-300.0,0.00024161,2]
[391997725,1761073256491,-300.0,0.00024161,2]
[391997726,1761073256520,-300.0,0.00024161,2]
[391997727,1761073256551,-300.0,0.00024161,2]
[391997728,1761073256580,-300.0,0.00024161,2]
[391997729,1761073256609,-1200.0,0.00024161,2]
[391997730,1761073256921,-427.18012039,0.00024162,2]
[391997731,1761073259987,-8376.43184808,0.00024162,2]
[391997732,1761073262341,-10000.01,0.00024162,2]
[391997733,1761073262469,-10000.01,0.00024162,2]
[391997734,1761073262580,-10000.01,0.00024162,2]
[391997735,1761073262730,-10000.01,0.00024162,2]
[391997736,1761073262917,-300.0,0.00024161,2]
[391997737,1761073262947,-3187.05496368,0.00024162,2]
[391997738,1761073262982,-3025.90007264,0.00024162,2]
[391997739,1761073328733,5000.0,0.00024072,2]
[391997740,1761073336593,600.0,0.00024072,2]
[391997741,1761073342919,230.94,0.0002019,2]
[391997742,1761073343358,461.89,0.00022026,2]
[391997743,1761073343762,692.83,0.00023861,2]
[391997744,1761073346967,150.0,0.00013263,30]
[391997745,1761073347365,197.95,0.00014469,30]
[391997746,1761073347775,296.93,0.00015674,30]
[391997747,1761073348174,395.9,0.0001688,30]
[391997748,1761073348614,494.88,0.00018086,30]
[391997749,1761073349032,593.85,0.00019291,30]
[391997750,1761073349450,692.83,0.00020497,30]
[391997751,1761073349851,192.01,0.00021703,30]
[391997752,1761073349875,599.79,0.00021703,30]
[391997753,1761073350794,890.78,0.00022908,30]
[391997754,1761073352365,5000.0,0.00024072,2]
[391997755,1761073375283,4960.32783601,0.00024072,2]
[391997756,1761073390330,-417.15472785,0.00024072,2]
[391997757,1761073418896,155.97,0.00020174,2]
[391997758,1761073419303,311.94,0.00022008,2]
[391997759,1761073419691,467.92,0.00023842,2]
[391997760,1761073423178,150.0,0.00013426,30]
[391997761,1761073423583,150.0,0.00014647,30]
[391997762,1761073423977,200.54,0.00015867,30]
[391997763,1761073424390,267.38,0.00017088,30]
[391997764,1761073424808,334.23,0.00018308,30]
[391997765,1761073425214,401.07,0.00019529,30]
[391997766,1761073425732,467.92,0.00020749,30]
[391997767,1761073426010,534.76,0.0002197,30]
[391997768,1761073426404,601.61,0.0002319,30]
[391997769,1761073489374,300.0,0.000232,2]
[391997770,1761073495942,150.0,0.00020266,2]
[391997771,1761073496329,217.47,0.00022108,2]
[391997772,1761073496707,326.2,0.00023951,2]
[391997773,1761073499995,300.0,0.000232,2]
[391997774,1761073500571,150.0,0.00013318,30]
[391997775,1761073500962,150.0,0.00014529,30]
[391997776,1761073501387,150.0,0.00015739,30]
[391997777,1761073501791,186.4,0.0001695,30]
[391997778,1761073502216,233.0,0.00018161,30]
[391997779,1761073502672,279.6,0.00019371,30]
[391997780,1761073503115,326.2,0.00020582,30]
[391997781,1761073503648,372.8,0.00021793,30]
[391997782,1761073504109,419.4,0.00023003,30]
[391997783,1761073510622,300.0,0.000232,2]
[391997784,1761073521971,300.0,0.000232,2]
[391997785,1761073549157,2731.43,0.00024072,2]
[391997786,1761073549182,2268.57,0.00024072,2]
[391997787,1761073566961,7731.44,0.00024,30]
[391997788,1761073566985,10000.01,0.00024,30]
[391997789,1761073567006,10000.01,0.00024,30]
[391997790,1761073567032,17706.64,0.00024,30]
[391997791,1761073572275,150.0,0.00020139,2]
[391997792,1761073572668,162.4,0.00021969,2]
[391997793,1761073574362,-243.61,0.000238,2]
[391997794,1761073576489,150.0,0.00013027,30]
[391997795,1761073576911,150.0,0.00014211,30]
[391997796,1761073577332,150.0,0.00015395,30]
[391997797,1761073577760,150.0,0.00016579,30]
[391997798,1761073578298,174.0,0.00017764,30]
[391997799,1761073578708,208.81,0.00018948,30]
[391997800,1761073579114,243.61,0.00020132,30]
[391997801,1761073579494,278.41,0.00021316,30]
[391997802,1761073579951,313.21,0.00022501,30]
[391997803,1761073589619,-7126.07216399,0.00024,30]
[391997804,1761073592515,-500.0,0.00023999,2]
[391997805,1761073592546,-500.0,0.00023999,2]
[391997806,1761073592575,-500.0,0.00023999,2]
[391997807,1761073592606,-500.0,0.00023999,2]
[391997808,1761073592634,-500.0,0.00023999,2]
[391997809,1761073592665,-500.0,0.00023999,2]
[391997810,1761073592697,-183.41899847,0.00023999,2]
[391997811,1761073592730,-500.0,0.00023999,2]
[391997812,1761073592761,-500.0,0.00023999,2]
[391997813,1761073592791,-565.8512181,0.00023999,2]
[391997814,1761073592823,-1.46956686,0.00023999,2]
[391997815,1761073593163,-498.53043314,0.00023999,2]
[391997816,1761073595518,-2729.03158492,0.00023859,2]
[391997817,1761073595551,-500.0,0.00023999,2]
[391997818,1761073595580,-500.0,0.00023999,2]
[391997819,1761073595609,-416.87278682,0.00023999,2]
[391997820,1761073595637,-500.0,0.00023999,2]
[391997821,1761073595668,-208.20125652,0.00023999,2]
[391997822,1761073595754,-291.79874348,0.00023999,2]
[391997823,1761073598557,-500.0,0.00023999,2]
[391997824,1761073598587,-500.0,0.00023999,2]
[391997825,1761073598618,-500.0,0.00023999,2]
[391997826,1761073598649,-500.0,0.00023999,2]
[391997827,1761073598678,-500.0,0.00023999,2]
[391997828,1761073598709,-500.0,0.00023999,2]
[391997829,1761073598739,-500.0,0.00023999,2]
[391997830,1761073598767,-500.0,0.00023999,2]
[391997831,1761073598796,-500.0,0.00023999,2]
[391997832,1761073598825,-500.0,0.00023999,2]
[391997833,1761073598990,-0.01,0.00023999,2]
[391997834,1761073601682,-10000.01,0.0002399,2]
[391997835,1761073604763,-300.0,0.000232,2]
[391997836,1761073604801,-9400.01,0.0002399,2]
[391997837,1761073607725,-10000.01,0.0002399,2]
[391997838,1761073607919,-10000.01,0.0002399,2]
[391997839,1761073608114,-10000.01,0.0002399,2]
[391997840,1761073608223,-10000.01,0.0002399,2]
[391997841,1761073608407,-10000.01,0.0002399,2]
[391997842,1761073608468,-10000.01,0.0002399,2]
[391997843,1761073608600,-10000.01,0.0002399,2]
[391997844,1761073608731,-10000.01,0.0002399,2]
[391997845,1761073608868,-599.9,0.0002399,2]
[391997846,1761073608899,-399.99,0.00023999,2]
[391997847,1761073608930,-500.0,0.00023999,2]
[391997848,1761073608961,-192.70416663,0.00023999,2]
[391997849,1761073608990,-500.0,0.00023999,2]
[391997850,1761073609019,-500.0,0.00023999,2]
[391997851,1761073609048,-500.0,0.00023999,2]
[391997852,1761073609076,-500.0,0.00023999,2]
[391997853,1761073609104,-500.0,0.00023999,2]
[391997854,1761073609132,-500.0,0.00023999,2]
[391997855,1761073609160,-114.82166674,0.00023999,2]
[391997856,1761073609312,-385.17833326,0.00023999,2]
[391997857,1761073610711,-500.0,0.00023999,2]
[391997858,1761073610742,-548.79087926,0.00023999,2]
[391997859,1761073610771,-500.0,0.00023999,2]
[391997860,1761073610800,-500.0,0.00023999,2]
[391997861,1761073610830,-500.0,0.00023999,2]
[391997862,1761073610859,-500.0,0.00023999,2]
[391997863,1761073610886,-500.0,0.00023999,2]
[391997864,1761073610914,-500.0,0.00023999,2]
[391997865,1761073610945,-500.0,0.00023999,2]
[391997866,1761073610974,-402.42824148,0.00023999,2]
[391997867,1761073611131,-97.57175852,0.00023999,2]
[391997868,1761073616630,-300.0,0.000232,2]
[391997869,1761073616660,-500.0,0.00023999,2]
[391997870,1761073616689,-500.0,0.00023999,2]
[391997871,1761073616716,-500.0,0.00023999,2]
[391997872,1761073616745,-500.0,0.00023999,2]
[391997873,1761073616776,-500.0,0.00023999,2]
[391997874,1761073616806,-500.0,0.00023999,2]
[391997875,1761073616833,-500.0,0.00023999,2]
[391997876,1761073616867,-500.0,0.00023999,2]
[391997877,1761073616897,-500.0,0.00023999,2]
[391997878,1761073617019,-500.0,0.00023999,2]